[Event "XII Figueira da Foz Open 2018"]
[Site "Figueira da Foz"]
[Date "2018.10.30"]
[Round "3"]
[White "Gama, Joao Goncalo Cereje"]
[Black "Soares, Sara Joana De Moura"]
[Result "1-0"]
[ECO "C54"]
[WhiteElo "1598"]
[BlackElo "1481"]
[Annotator "NA RC"]
[PlyCount "105"]
[EventDate "2018.10.30"]
[EventType "swiss"]
[EventCountry "POR"]
[SourceTitle "playchess.com"]
[Source "ChessBase"]
[SourceQuality "1"]
[TimeControl "40/5400+30:1800+30"]

1. e4 {[%emt 0:00:00]} e5 {[%emt 0:00:00]} 2. Nf3 {[%emt 0:00:00]} Nc6 {[%emt 0:00:17]} 3. Bc4 {[%emt 0:00:00]} Bc5 {[%emt 0:00:13]} 4. c3 {[%emt 0:00:08]} Nf6 {[%emt 0:00:19]} 5. d3 {[%emt 0:00:28]} d6 {[%emt 0:00:42]} 6. Bb3 {[%emt 0:00:28]} O-O {[%emt 0:01:32]} 7. O-O {[%emt 0:00:44]} Bb6 {[%emt 0:03:07]} 8. Nbd2 {[%emt 0:03:49]} a6 {[%emt 0:02:35]} 9. Nc4 {[%emt 0:07:07]} Ba7 {[%emt 0:00:39]} 10. Ne3 {[%emt 0:02:42]} Nh5 {[%emt 0:12:20]} 11. Nd5 {[%emt 0:07:47]} h6 {[%emt 0:04:37]} 12. d4 {[%emt 0:09:44]} Nf6 {[%emt 0:07:26]} 13. Re1 {[%emt 0:06:32]} Bg4 {[%emt 0:06:13]} 14. h3 {[%emt 0:00:23]} Bh5 {[%emt 0:01:48]} 15. Qd3 {[%emt 0:02:53]} exd4 {[%emt 0:07:57]} 16. Nxd4 {[%emt 0:08:42]} Ne5 {[%emt 0:03:45]} 17. Qg3 {[%emt 0:00:17]} Bg6 {[%emt 0:03:23]} 18. f4 {[%emt 0:12:59]} Nh5 {[%emt 0:04:07]} 19. Qe3 {[%emt 0:02:53]} c5 {[%emt 0:04:39]} 20. fxe5 {[%emt 0:03:16]} cxd4 {[%emt 0:00:31]} 21. cxd4 {[%emt 0:00:14]} dxe5 {[%emt 0:00:50]} 22. Kh1 {[%emt 0:00:40]} Bxd4 {[%emt 0:01:59]} 23. Qf3 {[%emt 0:00:54]} Qh4 {[%emt 0:07:06]} 24. Bd2 {[%emt 0:02:14]} Bxe4 {[%emt 0:03:52]} 25. Rxe4 {[%emt 0:03:14]} Ng3+ {[%emt 0:00:20]} 26. Kh2 {[%emt 0:00:10]} Nxe4 {[%emt 0:00:19]} 27. Be1 {[%emt 0:02:42]} Bf2 {[%emt 0:08:38]} 28. g3 {[%emt 0:00:43]} Bxg3+ {[%emt 0:00:16]} 29. Bxg3 {[%emt 0:00:49]} Nxg3 {[%emt 0:00:35]} 30. Qxg3 {[%emt 0:00:32]} Qxg3+ {[%emt 0:01:44]} 31. Kxg3 {[%emt 0:00:33]} Kh8 {[%emt 0:00:57]} 32. Re1 {[%emt 0:03:17]} Rae8 {[%emt 0:02:32]} 33. Nb6 {[%emt 0:02:38]} Re7 {[%emt 0:02:25]} 34. Nc4 {[%emt 0:02:37]} e4 {[%emt 0:01:12]} 35. Kf4 {[%emt 0:05:24]} f5 {[%emt 0:03:06]} 36. h4 {[%emt 0:00:17]} g6 {[%emt 0:01:58]} 37. Rg1 {[%emt 0:01:57]} Kg7 {[%emt 0:00:47]} 38. Ne3 {[%emt 0:02:57]} Kh7 {[%emt 0:01:18]} 39. Nd5 {[%emt 0:01:09]} Rd7 {[%emt 0:01:29]} 40. Ke5 {[%emt 0:00:00]} Rdd8 {[%emt 0:00:00]} 41. Nf6+ {[%emt 0:04:09]} Kg7 {[%emt 0:02:22]} 42. Nh5+ {[%emt 0:00:30]} Kh7 {[%emt 0:00:36]} 43. Nf4 {[%emt 0:00:41]} Rde8+ {[%emt 0:04:13]} 44. Be6 {[%emt 0:01:05]} Rg8 {[%emt 0:02:56]} 45. Nd5 {[%emt 0:01:34]} Rgf8 {[%emt 0:12:22]} 46. Nf6+ {[%emt 0:03:22]} Rxf6 {[%emt 0:00:22]} 47. Kxf6 {[%emt 0:00:07]} e3 {[%emt 0:00:12]} 48. Bf7 {[%emt 0:01:43]} Rf8 {[%emt 0:06:06]} 49. Ke7 {[%emt 0:01:42]} Rc8 {[%emt 0:01:36]} 50. Bxg6+ {[%emt 0:00:46]} Kh8 {[%emt 0:00:18]} 51. Bxf5 {[%emt 0:01:07]} Rc5 {[%emt 0:00:29]} 52. Kf6 {[%emt 0:00:57]} Rd5 {[%emt 0:02:36]} 53. Re1 {[%emt 0:01:58]} 1-0

[Event "XII Figueira da Foz Open 2018"]
[Site "Figueira da Foz"]
[Date "2018.10.30"]
[Round "3"]
[White "Bouxo, Luis Antonio Maximi"]
[Black "Fernandes, Joao Pedro Murtinho"]
[Result "0-1"]
[ECO "A77"]
[WhiteElo "1585"]
[BlackElo "2067"]
[Annotator "NA RC"]
[PlyCount "70"]
[EventDate "2018.10.30"]
[EventType "swiss"]
[EventCountry "POR"]
[SourceTitle "playchess.com"]
[Source "ChessBase"]
[SourceQuality "1"]
[TimeControl "40/5400+30:1800+30"]

{[%evp 8,68,88,32767,32767,32767,32767,32767,32767,32767,37,32767,32767,41,48,11,26,-10,10,0,-6,4,33,32767,75,-14,-12,-9,0,-9,32767,32767,32767,32767,32767,32767,32767,32767,32767,15,91,90,61,-529,-323,-314,-325,-398,-430,-541,-576,-572,-556,-1029,-1088,-1183,-1640,-1543,-1631,-1820,32767,-3028,-2466]} 1. d4 {[%emt 0:00:00]} Nf6 {[%emt 0:00:00]} 2. c4 {[%emt 0:00:17]} c5 {[%emt 0:00:02]} 3. d5 {[%emt 0:00:57]} e6 {[%emt 0:00:11]} 4. Nc3 {[%emt 0:01:20]} exd5 {[%emt 0:00:09]} 5. cxd5 {[%emt 0:00:08]} d6 {[%emt 0:00:06]} 6. e4 {[%emt 0:03:56]} g6 {[%emt 0:00:33]} 7. Be2 {[%emt 0:03:40]} Bg7 {[%emt 0:00:12]} 8. Nf3 {[%emt 0:09:45]} O-O {[%emt 0:00:23]} 9. O-O {[%emt 0:00:17]} Re8 {[%emt 0:00:21]} 10. Nd2 {[%emt 0:02:59]} Nbd7 {[%emt 0:05:02]} 11. Qc2 {[%emt 0:04:29]} a6 {[%emt 0:05:26] LiveBook: 20 Games} 12. Nc4 {[%emt 0:04:00]} Nb6 {[%emt 0:07:10]} 13. Ne3 {[%emt 0:04:08]} Qe7 $146 {[%emt 0:02:23] A77: Modern Benoni: Classical: 9...Re8 10 Nd2: 10...a6 and 10...Nbd7} ({Predecessor:} 13... Nbd7 14. a4 Ne5 15. h3 g5 16. f3 Bd7 17. Nc4 Nxc4 18. Bxc4 Nh5 19. Be3 Be5 20. Bf2 Qf6 21. Be3 {0-1 (28) Dobai,S (2098)-Parkanyi,A (2352) Miskolc 2002}) 14. f3 {[%emt 0:02:03]} Nbd7 {[%emt 0:03:44]} 15. a4 {[%emt 0:02:45]} Ne5 {[%emt 0:05:49]} (15... Nh5 $11 {hält das Gleichgewicht.}) 16. Nc4 {[%emt 0:03:55]} (16. a5 $16) 16... Nxc4 {[%emt 0:03:35]} 17. Bxc4 {[%emt 0:00:11]} Nh5 {[%emt 0:01:11]} 18. g4 {[%emt 0:05:47]} Nf6 {[%emt 0:09:14]} 19. Bg5 {[%emt 0:01:27]} Qe5 {[%emt 0:03:33]} 20. Qd2 {[%emt 0:03:26]} h5 {[%emt 0:01:49]} 21. h3 {[%emt 0:02:34]} Nh7 {[%emt 0:09:11]} 22. Bf4 {[%emt 0:01:56]} Qe7 {[%emt 0:00:28]} 23. Qh2 {[%emt 0:01:17]} Qf6 {[%emt 0:07:54]} (23... Rd8 $11 {keeps the balance.}) 24. Rad1 {[%emt 0:02:34]} Ng5 {[%emt 0:01:54]} 25. Be2 $2 {[%emt 0:03:20]} (25. Kg2 $14 {stays ahead.} Nxf3 26. Rxf3 hxg4 27. Re3 (27. hxg4 Bxg4 28. Be2 Bxf3+ 29. Bxf3 Rad8 $16)) 25... Nxh3+ {[%emt 0:00:14]} 26. Qxh3 {[%emt 0:04:52]} Qxf4 {[%emt 0:00:05]} 27. Qg2 {[%emt 0:02:14]} Bd4+ {[%emt 0:01:02]} 28. Rxd4 {[%emt 0:05:26]} cxd4 {[%emt 0:00:05]} 29. Nd1 {[%emt 0:04:00]} hxg4 {[%emt 0:00:29]} 30. Bd3 {[%emt 0:01:36]} g3 {[%emt 0:00:38]} 31. Re1 {[%emt 0:06:11]} Re5 {[%emt 0:01:20]} 32. Bf1 {[%emt 0:04:08]} Bd7 {[%emt 0:00:53]} 33. b3 {[%emt 0:01:41]} Rh5 {[%emt 0:01:07]} 34. Qe2 {[%emt 0:06:22]} Rh2 $19 {[%emt 0:01:16]} 35. Bg2 {[%emt 0:01:18]} Bh3 {[%emt 0:00:18] Kh1} 0-1

[Event "XII Figueira da Foz Open 2018"]
[Site "Figueira da Foz"]
[Date "2018.10.30"]
[Round "3"]
[White "Moes Joaquim, Carlos"]
[Black "Dong, Fabio"]
[Result "1/2-1/2"]
[ECO "E32"]
[WhiteElo "1415"]
[BlackElo "1273"]
[Annotator "NA RC"]
[PlyCount "95"]
[EventDate "2018.10.30"]
[EventType "swiss"]
[EventCountry "POR"]
[SourceTitle "playchess.com"]
[Source "ChessBase"]
[SourceQuality "1"]
[TimeControl "40/5400+30:1800+30"]

1. d4 {[%emt 0:00:00]} Nf6 {[%emt 0:00:00]} 2. c4 {[%emt 0:00:00]} e6 {[%emt 0:00:00]} 3. Nc3 {[%emt 0:00:14]} Bb4 {[%emt 0:00:00]} 4. Qc2 {[%emt 0:00:35]} O-O {[%emt 0:00:05]} 5. Nf3 {[%emt 0:00:18]} c5 {[%emt 0:01:16]} 6. a3 {[%emt 0:01:34]} Bxc3+ {[%emt 0:00:13]} 7. Qxc3 {[%emt 0:00:14]} b6 {[%emt 0:05:40]} 8. e3 {[%emt 0:03:28]} d6 {[%emt 0:01:16]} 9. Be2 {[%emt 0:00:22]} Bb7 {[%emt 0:00:11]} 10. O-O {[%emt 0:00:49]} Nbd7 {[%emt 0:01:38]} 11. Rd1 {[%emt 0:02:35]} Qc7 {[%emt 0:00:32]} 12. b3 {[%emt 0:02:08]} Ne4 {[%emt 0:03:01]} 13. Qc2 {[%emt 0:00:22]} Ndf6 {[%emt 0:00:24]} 14. Bb2 {[%emt 0:01:30]} Rfd8 {[%emt 0:11:38]} 15. Nd2 {[%emt 0:00:10]} Rac8 {[%emt 0:02:47]} 16. f3 {[%emt 0:05:49]} Nxd2 {[%emt 0:03:01]} 17. Qxd2 {[%emt 0:04:22]} d5 {[%emt 0:05:15]} 18. Rac1 {[%emt 0:03:10]} Qe7 {[%emt 0:03:58]} 19. Bd3 {[%emt 0:02:12]} h6 {[%emt 0:09:25]} 20. Bb1 {[%emt 0:01:50]} cxd4 {[%emt 0:06:41]} 21. exd4 {[%emt 0:01:44]} Rc7 {[%emt 0:08:53]} 22. a4 {[%emt 0:12:18]} Qd6 {[%emt 0:03:55]} 23. Qe3 {[%emt 0:05:52]} Rdc8 {[%emt 0:03:54]} 24. c5 {[%emt 0:05:54]} bxc5 {[%emt 0:00:31]} 25. dxc5 {[%emt 0:00:19]} Rxc5 {[%emt 0:00:40]} 26. Rxc5 {[%emt 0:03:06]} Qxc5 {[%emt 0:00:55]} 27. Bd4 {[%emt 0:00:21]} Qb4 {[%emt 0:03:59]} 28. h4 {[%emt 0:12:39]} a6 {[%emt 0:01:08]} 29. g4 {[%emt 0:02:04]} Qe7 {[%emt 0:01:41]} 30. Kf2 {[%emt 0:01:01]} Nd7 {[%emt 0:02:02]} 31. Kg3 {[%emt 0:00:52]} e5 {[%emt 0:01:20]} 32. Bf5 {[%emt 0:01:49]} Re8 {[%emt 0:01:18]} 33. Re1 {[%emt 0:05:31]} f6 {[%emt 0:01:05]} 34. Bg6 {[%emt 0:01:10]} Rf8 {[%emt 0:01:21]} 35. Kh3 {[%emt 0:05:22]} Qd8 {[%emt 0:02:32]} 36. Bb2 {[%emt 0:00:34]} d4 {[%emt 0:00:12]} 37. Qd3 {[%emt 0:00:53]} Nb6 {[%emt 0:02:04]} 38. Ba3 {[%emt 0:01:26]} Nd5 {[%emt 0:02:19]} 39. Bc1 {[%emt 0:02:08]} Nf4+ {[%emt 0:01:24]} 40. Bxf4 {[%emt 0:00:00]} exf4 {[%emt 0:00:00]} 41. b4 {[%emt 0:03:50]} Qd5 {[%emt 0:01:26]} 42. Be4 {[%emt 0:01:03]} Qd7 {[%emt 0:00:24]} 43. b5 {[%emt 0:01:20]} axb5 {[%emt 0:01:47]} 44. axb5 {[%emt 0:00:09]} Bxe4 {[%emt 0:00:53]} 45. Rxe4 {[%emt 0:02:14]} Rb8 {[%emt 0:00:45]} 46. Rxd4 {[%emt 0:01:59]} Qxb5 {[%emt 0:00:20]} 47. Qxb5 {[%emt 0:11:45]} Rxb5 {[%emt 0:00:08]} 48. Rxf4 {[%emt 0:00:12]} 1/2-1/2

[Event "XII Figueira da Foz Open 2018"]
[Site "Figueira da Foz"]
[Date "2018.10.30"]
[Round "3"]
[White "Goncalves, Lucas Jordao"]
[Black "Sismeiro, Miguel"]
[Result "0-1"]
[ECO "C54"]
[WhiteElo "1401"]
[BlackElo "2008"]
[Annotator "NA RC"]
[PlyCount "102"]
[EventDate "2018.10.30"]
[EventType "swiss"]
[EventCountry "POR"]
[SourceTitle "playchess.com"]
[Source "ChessBase"]
[SourceQuality "1"]
[TimeControl "40/5400+30:1800+30"]

1. e4 {[%emt 0:00:00]} e5 {[%emt 0:00:00]} 2. Nf3 {[%emt 0:00:00]} Nc6 {[%emt 0:00:00]} 3. Bc4 {[%emt 0:00:00]} Bc5 {[%emt 0:00:16]} 4. c3 {[%emt 0:00:03]} Nf6 {[%emt 0:00:06]} 5. d3 {[%emt 0:00:06]} d6 {[%emt 0:01:15] LiveBook: 2663 Games} 6. Nbd2 {[%emt 0:00:35]} O-O {[%emt 0:00:31]} 7. O-O {[%emt 0:00:10]} a6 {[%emt 0:00:47]} 8. a4 {[%emt 0:00:06]} Ba7 {[%emt 0:00:53]} 9. h3 {[%emt 0:00:22]} Ne7 {[%emt 0:02:09]} 10. Re1 {[%emt 0:01:07]} Ng6 {[%emt 0:02:37] C54: Italienische Partie (Hauptvariante)} 11. Nf1 {[%emt 0:01:16]} Be6 {[%emt 0:01:54]} 12. Bxe6 {[%emt 0:00:35]} fxe6 {[%emt 0:00:05]} 13. Ne3 $146 {[%emt 0:00:15]} ({Vorgänger:} 13. Ng3 h6 14. d4 Nd7 15. Be3 Qe7 16. a5 Kh7 17. Nd2 Rf7 18. Nc4 {½-½ (57) Caruana,F (2822)-Nakamura,H (2769) Stavanger 2018}) 13... Qe8 {[%emt 0:10:25]} 14. Nf1 {[%emt 0:05:16]} Nh5 {[%emt 0:09:49]} 15. Be3 {[%emt 0:00:36]} Nhf4 {[%emt 0:03:06]} 16. Bxa7 {[%emt 0:01:10]} Rxa7 {[%emt 0:00:04]} 17. Ne3 $2 {[%emt 0:00:19] [#]} (17. Kh2 $14 {bleibt weiter vorne.}) 17... Qf7 $1 {[%emt 0:04:00]} 18. Kh2 {[%emt 0:04:32]} (18. Nh2 $17) 18... Nxg2 {[%emt 0:09:28]} 19. Kxg2 {[%emt 0:00:15]} Qxf3+ $1 {[%emt 0:00:07]} 20. Qxf3 {[%emt 0:00:15]} Nh4+ {[%emt 0:00:04]} 21. Kg3 {[%emt 0:00:37]} Nxf3 {[%emt 0:00:13]} 22. Red1 {[%emt 0:00:14]} g5 {[%emt 0:01:58]} 23. Ng2 {[%emt 0:01:54]} c5 {[%emt 0:05:27]} (23... Raa8 $19 {and Black stays clearly on top.} 24. b4 h5) 24. b4 {[%emt 0:01:15]} (24. a5 $17 {keeps fighting.}) 24... cxb4 {[%emt 0:00:12]} 25. cxb4 {[%emt 0:00:07]} Nd4 {[%emt 0:00:11]} 26. Ne3 {[%emt 0:01:55]} Raa8 {[%emt 0:04:11]} 27. Ra2 {[%emt 0:02:08]} Kf7 {[%emt 0:07:49]} 28. Nc4 {[%emt 0:01:01]} Ke7 {[%emt 0:00:04]} 29. Nb6 {[%emt 0:00:18]} Rf3+ {[%emt 0:01:35]} 30. Kg2 {[%emt 0:02:31]} Raf8 {[%emt 0:00:12]} 31. Nc4 {[%emt 0:05:23]} h5 {[%emt 0:06:17]} 32. b5 {[%emt 0:01:38]} axb5 {[%emt 0:05:49]} 33. axb5 {[%emt 0:01:19]} Nb3 {[%emt 0:04:44]} 34. Rb1 {[%emt 0:06:56]} (34. Ra7 $17) 34... Rxd3 {[%emt 0:04:02]} 35. Ra7 {[%emt 0:03:32]} Nc5 {[%emt 0:00:39]} 36. Na5 {[%emt 0:00:33]} Rd2 {[%emt 0:03:19]} 37. Rf1 {[%emt 0:00:19]} (37. Nxb7 {was necessary.} Rfxf2+ 38. Kg1) 37... Nxe4 {[%emt 0:08:09]} 38. Rxb7+ {[%emt 0:00:10] [#]} Kf6 $1 {[%emt 0:00:05]} 39. Rc7 {[%emt 0:00:29]} (39. b6 {was worth a try.}) 39... Rb2 {[%emt 0:00:39]} 40. Rb7 $2 {[%emt 0:00:00]} (40. Nc4 Rb3 41. b6) 40... Rc8 {[%emt 0:00:00]} 41. b6 {[%emt 0:04:41]} Rc5 {[%emt 0:04:30]} 42. Ra1 {[%emt 0:01:00]} Rxf2+ {[%emt 0:00:13]} 43. Kg1 {[%emt 0:00:06]} Rc3 {[%emt 0:06:25]} 44. Rc7 {[%emt 0:00:19]} Rg3+ {[%emt 0:00:28]} 45. Kh1 {[%emt 0:00:06]} Rxh3+ {[%emt 0:00:15]} 46. Kg1 {[%emt 0:00:12]} Rg3+ {[%emt 0:00:09]} 47. Kh1 {[%emt 0:00:16]} Rgg2 {[%emt 0:00:07]} 48. Ra3 {[%emt 0:00:26]} Rh2+ {[%emt 0:00:28]} 49. Kg1 {[%emt 0:00:08]} Rfg2+ {[%emt 0:00:12]} 50. Kf1 {[%emt 0:00:05]} Nd2+ {[%emt 0:00:10]} 51. Ke1 {[%emt 0:00:10]} Rh1# {[%emt 0:00:07]} 0-1

[Event "XII Figueira da Foz Open 2018"]
[Site "Figueira da Foz"]
[Date "2018.10.30"]
[Round "3"]
[White "Dong, Rafael"]
[Black "Marcal, Armando Paulo Gomes"]
[Result "1-0"]
[ECO "A15"]
[WhiteElo "1360"]
[BlackElo "1751"]
[Annotator "NA RC"]
[PlyCount "81"]
[EventDate "2018.10.30"]
[EventType "swiss"]
[EventCountry "POR"]
[SourceTitle "playchess.com"]
[Source "ChessBase"]
[SourceQuality "1"]
[TimeControl "40/5400+30:1800+30"]

1. c4 {[%emt 0:00:00]} Nf6 {[%emt 0:06:17]} 2. g3 {[%emt 0:00:00]} g6 {[%emt 0:00:20]} 3. Bg2 {[%emt 0:00:00]} Bg7 {[%emt 0:00:06]} 4. Nf3 {[%emt 0:00:00]} O-O {[%emt 0:01:02]} 5. Nc3 {[%emt 0:00:08]} c6 {[%emt 0:02:52]} 6. O-O {[%emt 0:00:33]} d5 {[%emt 0:00:49]} 7. cxd5 {[%emt 0:00:33]} cxd5 {[%emt 0:00:07]} 8. d4 {[%emt 0:02:27]} Nc6 {[%emt 0:01:31]} 9. b3 {[%emt 0:02:36]} a6 {[%emt 0:02:02]} 10. e3 {[%emt 0:01:14]} Re8 {[%emt 0:02:37]} 11. Bb2 {[%emt 0:03:12]} Qc7 {[%emt 0:01:08]} 12. Rc1 {[%emt 0:00:37]} Qd6 {[%emt 0:00:54]} 13. Na4 {[%emt 0:05:02]} Nd7 {[%emt 0:01:55]} 14. Nc5 {[%emt 0:03:12]} b6 {[%emt 0:00:44]} 15. Nxd7 {[%emt 0:02:37]} Bxd7 {[%emt 0:00:17]} 16. Qe2 {[%emt 0:02:27]} a5 {[%emt 0:08:46]} 17. Rfd1 {[%emt 0:02:35]} a4 {[%emt 0:02:28]} 18. Ne1 {[%emt 0:11:59]} axb3 {[%emt 0:04:34]} 19. axb3 {[%emt 0:00:02]} Na5 {[%emt 0:01:10]} 20. Rc3 {[%emt 0:02:36]} b5 {[%emt 0:02:39]} 21. Rc5 {[%emt 0:02:12]} e6 {[%emt 0:01:28]} 22. Qd3 {[%emt 0:02:25]} Bf6 {[%emt 0:05:16]} 23. Ba3 {[%emt 0:03:08]} Qb6 {[%emt 0:00:19]} 24. Rcc1 {[%emt 0:03:05]} b4 {[%emt 0:02:19]} 25. Bb2 {[%emt 0:01:53]} Bb5 {[%emt 0:00:19]} 26. Qc2 {[%emt 0:01:37]} Rac8 {[%emt 0:01:38]} 27. Qxc8 {[%emt 0:00:22]} Rxc8 {[%emt 0:00:08]} 28. Rxc8+ {[%emt 0:01:48]} Kg7 {[%emt 0:00:03]} 29. Ra1 {[%emt 0:03:14]} Nxb3 {[%emt 0:10:22]} 30. Raa8 {[%emt 0:00:07]} Bc6 {[%emt 0:01:01]} 31. Rcb8 {[%emt 0:01:20]} Bb7 {[%emt 0:01:56]} 32. Rg8+ {[%emt 0:00:20]} Kh6 {[%emt 0:00:06]} 33. Raf8 {[%emt 0:01:04]} Qc7 {[%emt 0:01:04]} 34. f4 {[%emt 0:00:59]} g5 {[%emt 0:01:41]} 35. fxg5+ {[%emt 0:01:09]} Bxg5 {[%emt 0:00:22]} 36. Nf3 {[%emt 0:01:10]} Bxe3+ {[%emt 0:00:00]} 37. Kh1 {[%emt 0:02:59]} Qc2 {[%emt 0:04:36]} 38. h4 {[%emt 0:03:08]} Ba6 {[%emt 0:03:43]} 39. Ne5 {[%emt 0:00:00]} Qb1+ {[%emt 0:00:00]} 40. Kh2 {[%emt 0:00:00]} Bg1+ {[%emt 0:00:00]} 41. Kh3 {[%emt 0:01:12]} 1-0

[Event "XII Figueira da Foz Open 2018"]
[Site "Figueira da Foz"]
[Date "2018.10.31"]
[Round "4"]
[White "Guerreiro, Nuno"]
[Black "Pipiras, Filipa Fortuna"]
[Result "0-1"]
[ECO "A00"]
[WhiteElo "2069"]
[BlackElo "1853"]
[Annotator "NA RC"]
[PlyCount "74"]
[EventDate "2018.10.30"]
[EventType "swiss"]
[EventCountry "POR"]
[SourceTitle "playchess.com"]
[Source "ChessBase"]
[SourceQuality "1"]
[TimeControl "40/5400+30:1800+30"]

1. Nc3 {[%emt 0:00:00]} d5 {[%emt 0:00:42]} 2. d4 {[%emt 0:00:06]} Nf6 {[%emt 0:00:34]} 3. Bf4 {[%emt 0:01:04]} e6 {[%emt 0:00:50]} 4. e3 {[%emt 0:00:16]} a6 {[%emt 0:01:53]} 5. Bd3 {[%emt 0:01:02]} c5 {[%emt 0:00:27]} 6. h4 {[%emt 0:00:59]} Nc6 {[%emt 0:00:57]} 7. Nf3 {[%emt 0:00:31]} Be7 {[%emt 0:00:53]} 8. h5 {[%emt 0:01:12]} h6 {[%emt 0:02:39]} 9. Ne5 {[%emt 0:01:02]} cxd4 {[%emt 0:02:03]} 10. exd4 {[%emt 0:00:44]} Qb6 {[%emt 0:03:43]} 11. Ne2 {[%emt 0:03:50]} Qxb2 {[%emt 0:10:53]} 12. c3 {[%emt 0:00:37]} Qb6 {[%emt 0:00:52]} 13. Qc2 {[%emt 0:00:31]} O-O {[%emt 0:04:16]} 14. Qd2 {[%emt 0:00:50]} Nxe5 {[%emt 0:04:01]} 15. dxe5 {[%emt 0:01:11]} Ne4 {[%emt 0:00:53]} 16. Bxe4 {[%emt 0:00:08]} dxe4 {[%emt 0:00:09]} 17. Rh3 {[%emt 0:00:26]} Kh7 {[%emt 0:06:28]} 18. Qc2 {[%emt 0:03:13]} Qc6 {[%emt 0:04:20]} 19. Nd4 {[%emt 0:01:32]} Qd5 {[%emt 0:00:56]} 20. Rd1 {[%emt 0:00:18]} Rd8 {[%emt 0:07:37]} 21. Rd2 {[%emt 0:01:34]} Bd7 {[%emt 0:12:48]} 22. c4 {[%emt 0:01:39]} Qa5 {[%emt 0:01:50]} 23. Qxe4+ {[%emt 0:00:33]} Kh8 {[%emt 0:00:15]} 24. Nb3 {[%emt 0:01:30]} Qc7 {[%emt 0:00:39]} 25. Kf1 {[%emt 0:05:25]} a5 {[%emt 0:04:16]} 26. Rdd3 {[%emt 0:05:31]} b5 {[%emt 0:00:57]} 27. c5 {[%emt 0:06:06]} a4 {[%emt 0:00:49]} (27... Bc6 $142 28. Qe3 Rxd3 29. Qxd3 Rd8) 28. Nd4 {[%emt 0:00:51]} Qxc5 {[%emt 0:00:49]} 29. Rhg3 {[%emt 0:02:54]} b4 $2 {[%emt 0:03:26] [#]} (29... Rac8 $19 30. Qe2 Bc6 31. Nxc6 Qxc6) 30. Rxg7 $4 {[%emt 0:09:44]} (30. Bxh6 $1 $14 {[%mdl 512]} gxh6 31. Qf4) 30... Kxg7 {[%emt 0:01:57]} 31. Rg3+ {[%emt 0:02:33] [#]} Bg5 $1 {[%emt 0:00:28]} 32. Bxg5 {[%emt 0:00:41]} hxg5 {[%emt 0:00:09]} 33. Rxg5+ {[%emt 0:00:54]} Kf8 {[%emt 0:00:30]} 34. Qg4 {[%emt 0:01:18]} Bb5+ {[%emt 0:02:50]} (34... Qc1+ $142 35. Ke2 {[#]} Bb5+ $1 {[%mdl 512]} 36. Nxb5 Rd2+ 37. Ke3 Rd1+ 38. Ke4 Qc4+ 39. Ke3 Rd3+ 40. Ke2 Qc2+ 41. Kf1 Rd1+ 42. Qxd1 Qxd1#) 35. Kg1 {[%emt 0:00:37]} Qxd4 $19 {[%emt 0:00:51]} 36. Rg8+ {[%emt 0:00:10]} Ke7 {[%emt 0:00:10]} 37. Qh4+ {[%emt 0:01:04]} Qxh4 {[%emt 0:00:09]} 0-1

[Event "XII Figueira da Foz Open 2018"]
[Site "Figueira da Foz"]
[Date "2018.10.31"]
[Round "4"]
[White "Fernandes, Joao Pedro Murtinho"]
[Black "Adams, Philip"]
[Result "1-0"]
[ECO "B35"]
[WhiteElo "2067"]
[BlackElo "1980"]
[Annotator "NA RC"]
[PlyCount "83"]
[EventDate "2018.10.30"]
[EventType "swiss"]
[EventCountry "POR"]
[SourceTitle "playchess.com"]
[Source "ChessBase"]
[SourceQuality "1"]
[TimeControl "40/5400+30:1800+30"]

1. e4 c5 2. Nf3 Nc6 3. d4 cxd4 4. Nxd4 g6 5. Nc3 Bg7 6. Be3 Nf6 7. Bc4 Qa5 8. O-O O-O 9. Bb3 d6 10. h3 Bd7 11. Qd3 Nxd4 12. Bxd4 Bc6 13. Nd5 Bxd5 14. exd5 Nd7 15. Bxg7 Kxg7 16. Qd4+ Kg8 {B72: Sicilian Dragon: 6 Be3, lines with h3+Bc4 and sidelines} 17. Rfe1 Rfe8 18. Re3 Qc5 19. Qd2 (19. Qh4 Nf6 20. Rd1 b5 {1-0 (44) Ivanovic,B (2445)-Rmus,A (2310) Bijelo Polje 2004}) 19... b5 $146 ({Predecessor:} 19... Ne5 20. Rae1 {1-0 (45) Aout,S (2273)-Midy,R (1947) Agneaux 2015}) 20. Rae1 Ne5 21. Kh1 Qc7 22. f4 Nc4 23. Bxc4 bxc4 24. f5 Qd7 25. fxg6 hxg6 26. Re4 Kg7 (26... e5 $16) 27. Qc3+ ({Don't do} 27. Rxc4 e5) 27... f6 28. Qxc4 ({Keinesfalls} 28. Rxc4 $6 Rac8) 28... Rac8 29. Qe2 Rc7 30. c4 Qd8 31. Qd3 Rb7 32. Rg4 g5 33. Qd4 Kg6 34. b3 Rh8 35. Re6 Kf7 36. Qe3 Qd7 37. Rge4 Qd8 38. Qf2 Qg8 39. c5 dxc5 (39... Rd7 $142 40. cxd6 Rxd6 41. Qxa7 Rxe6 42. dxe6+ Kf8) 40. d6 Qg6 41. Rxe7+ Rxe7 42. Rxe7+ 1-0